Workbook

Sheet Sheet1
A1: 思南县2024年公开考调面试成绩及总成绩统计表
A2: 序号 | B2: 面试室 | C2: 姓名 | D2: 性别 | E2: 准考证号 | F2: 报考岗位 | G2: 抽签号 | H2: 笔试 成绩 | I2: 面试 成绩 | J2: 总成绩 | K2: 排名 | L2: 备注
A3: 1 | B3: 第一面试室 | C3: 张兴娅 | D3: 女 | E3: 20240101 | F3: 学前教育教师 | G3: 23 | H3: 99 | I3: 86.5 | J3: =H3*2/3/2+I3*0.5 -> 76.25
A4: 2 | B4: 第一面试室 | C4: 杨朗 | D4: 女 | E4: 20240102 | F4: 学前教育教师 | G4: 1 | H4: 100 | I4: 87.5 | J4: =H4*2/3/2+I4*0.5 -> 77.08 | K4: 14 | L4: 进入下一环节
A5: 3 | B5: 第一面试室 | C5: 文祖亚 | D5: 女 | E5: 20240103 | F5: 学前教育教师 | G5: 8 | H5: 101.5 | I5: 84.29 | J5: =H5*2/3/2+I5*0.5 -> 75.98
A6: 4 | B6: 第一面试室 | C6: 李继芳 | D6: 女 | E6: 20240104 | F6: 学前教育教师 | G6: 12 | H6: 108 | I6: 84.3 | J6: 78.15 | K6: 12 | L6: 进入下一环节
A7: 5 | B7: 第一面试室 | C7: 张海艳 | D7: 女 | E7: 20240105 | F7: 学前教育教师 | G7: 17 | H7: 109.5 | I7: 88.13 | J7: 80.57 | K7: 3 | L7: 进入下一环节
A8: 6 | B8: 第一面试室 | C8: 刘玲 | D8: 女 | E8: 20240106 | F8: 学前教育教师 | G8: 4 | H8: 106.5 | I8: 89.38 | J8: 80.19 | K8: 4 | L8: 进入下一环节
A9: 7 | B9: 第一面试室 | C9: 方安蓉 | D9: 女 | E9: 20240107 | F9: 学前教育教师 | G9: 11 | H9: 101 | I9: 84.01 | J9: 75.67
A10: 8 | B10: 第一面试室 | C10: 李婷 | D10: 女 | E10: 20240108 | F10: 学前教育教师 | G10: 16 | H10: 107.5 | I10: 86.82 | J10: 79.24 | K10: 7 | L10: 进入下一环节
A11: 9 | B11: 第一面试室 | C11: 田芳 | D11: 女 | E11: 20240109 | F11: 学前教育教师 | G11: 7 | H11: 102.5 | I11: 85.38 | J11: 76.86
A12: 10 | B12: 第一面试室 | C12: 朱佳蓉 | D12: 女 | E12: 20240110 | F12: 学前教育教师 | G12: 5 | H12: 103 | I12: 84.55 | J12: 76.61
A13: 11 | B13: 第一面试室 | C13: 王洁 | D13: 女 | E13: 20240111 | F13: 学前教育教师 | G13: 21 | H13: 118 | I13: 87.22 | J13: 82.94 | K13: 1 | L13: 进入下一环节
A14: 12 | B14: 第一面试室 | C14: 张容 | D14: 女 | E14: 20240114 | F14: 学前教育教师 | G14: 9 | H14: 108.5 | I14: 84.78 | J14: 78.56 | K14: 10 | L14: 进入下一环节
A15: 13 | B15: 第一面试室 | C15: 袁莎莎 | D15: 女 | E15: 20240115 | F15: 学前教育教师 | G15: 26 | H15: 107.5 | I15: 87.36 | J15: 79.51 | K15: 5 | L15: 进入下一环节
A16: 14 | B16: 第一面试室 | C16: 张天燕 | D16: 女 | E16: 20240116 | F16: 学前教育教师 | G16: 25 | H16: 104 | I16: 86.5 | J16: 77.92 | K16: 13 | L16: 进入下一环节
A17: 15 | B17: 第一面试室 | C17: 李丽 | D17: 女 | E17: 20240118 | F17: 学前教育教师 | G17: 27 | H17: 99.5 | I17: 81.77 | J17: 74.05
A18: 16 | B18: 第一面试室 | C18: 张翊兰 | D18: 女 | E18: 20240119 | F18: 学前教育教师 | G18: 6 | H18: 99 | I18: 83.85 | J18: 74.93
A19: 17 | B19: 第一面试室 | C19: 周丽容 | D19: 女 | E19: 20240127 | F19: 学前教育教师 | G19: 28 | H19: 112 | I19: 88.52 | J19: 81.59 | K19: 2 | L19: 进入下一环节
A20: 18 | B20: 第一面试室 | C20: 何文香 | D20: 女 | E20: 20240128 | F20: 学前教育教师 | G20: 2 | H20: 99.5 | I20: 87.32 | J20: 76.83
A21: 19 | B21: 第一面试室 | C21: 王美龄 | D21: 女 | E21: 20240129 | F21: 学前教育教师 | G21: 3 | H21: 102.5 | I21: 83.84 | J21: 76.09
A22: 20 | B22: 第一面试室 | C22: 马芝琴 | D22: 女 | E22: 20240201 | F22: 学前教育教师 | G22: 13 | H22: 106 | I22: 83.47 | J22: 77.07 | K22: 15 | L22: 进入下一环节
A23: 21 | B23: 第一面试室 | C23: 冯飞燕 | D23: 女 | E23: 20240204 | F23: 学前教育教师 | G23: 14 | H23: 105 | I23: 86.68 | J23: 78.34 | K23: 11 | L23: 进入下一环节
A24: 22 | B24: 第一面试室 | C24: 邓一曼 | D24: 女 | E24: 20240205 | F24: 学前教育教师 | G24: 18 | H24: 107 | I24: 81.98 | J24: 76.66
A25: 23 | B25: 第一面试室 | C25: 冯红玲 | D25: 女 | E25: 20240207 | F25: 学前教育教师 | G25: 22 | H25: 103.5 | I25: 83.26 | J25: 76.13
A26: 24 | B26: 第一面试室 | C26: 蔡玲 | D26: 女 | E26: 20240208 | F26: 学前教育教师 | G26: 19 | H26: 102.5 | I26: 81.77 | J26: 75.05
A27: 25 | B27: 第一面试室 | C27: 田晓洪 | D27: 女 | E27: 20240210 | F27: 学前教育教师 | G27: 10 | H27: 102.5 | I27: 90.07 | J27: 79.20 | K27: 8 | L27: 进入下一环节
A28: 26 | B28: 第一面试室 | C28: 杨泽凤 | D28: 女 | E28: 20240211 | F28: 学前教育教师 | G28: 15 | H28: 100 | I28: 82.65 | J28: 74.66
A29: 27 | B29: 第一面试室 | C29: 邬宏玉 | D29: 女 | E29: 20240218 | F29: 学前教育教师 | G29: 缺考 | H29: 102 | I29: 缺考
A30: 28 | B30: 第一面试室 | C30: 杨正凤 | D30: 女 | E30: 20240219 | F30: 学前教育教师 | G30: 20 | H30: 106 | I30: 87.21 | J30: 78.94 | K30: 9 | L30: 进入下一环节
A31: 29 | B31: 第一面试室 | C31: 任娇娇 | D31: 女 | E31: 20240225 | F31: 学前教育教师 | G31: 24 | H31: 105.5 | I31: 88.32 | J31: 79.33 | K31: 6 | L31: 进入下一环节
A32: 30 | B32: 第一面试室 | C32: 熊丽珊 | D32: 女 | E32: 20240228 | F32: 学前教育教师 | G32: 29 | H32: 101.5 | I32: 82.44 | J32: 75.05
A33: 31 | B33: 第二面试室 | C33: 张汉 | D33: 男 | E33: 20240301 | F33: 小学数学教师 | G33: 17 | H33: 116 | I33: 86.74 | J33: =H33*2/3/2+I33*0.5 -> 82.04 | K33: 10 | L33: 进入下一环节
A34: 32 | B34: 第二面试室 | C34: 尹娜娜 | D34: 女 | E34: 20240302 | F34: 小学数学教师 | G34: 12 | H34: 99 | I34: 83.92 | J34: 74.96
A35: 33 | B35: 第二面试室 | C35: 李钰 | D35: 女 | E35: 20240303 | F35: 小学数学教师 | G35: 9 | H35: 117 | I35: 82.91 | J35: 80.46
A36: 34 | B36: 第二面试室 | C36: 徐伟 | D36: 男 | E36: 20240304 | F36: 小学数学教师 | G36: 8 | H36: 139 | I36: 81.82 | J36: 87.24 | K36: 1 | L36: 进入下一环节
A37: 35 | B37: 第二面试室 | C37: 肖霞 | D37: 女 | E37: 20240305 | F37: 小学数学教师 | G37: 5 | H37: 124 | I37: 81.8 | J37: 82.23 | K37: 9 | L37: 进入下一环节
A38: 36 | B38: 第二面试室 | C38: 冉陈橙 | D38: 女 | E38: 20240306 | F38: 小学数学教师 | G38: 缺考 | H38: 103.5 | I38: 缺考
A39: 37 | B39: 第二面试室 | C39: 何成银 | D39: 女 | E39: 20240307 | F39: 小学数学教师 | G39: 16 | H39: 119 | I39: 84.54 | J39: 81.94
A40: 38 | B40: 第二面试室 | C40: 田小燕 | D40: 女 | E40: 20240308 | F40: 小学数学教师 | G40: 1 | H40: 128 | I40: 84.8 | J40: 85.07 | K40: 6 | L40: 进入下一环节
A41: 39 | B41: 第二面试室 | C41: 安琴英 | D41: 女 | E41: 20240309 | F41: 小学数学教师 | G41: 11 | H41: 111 | I41: 80.11 | J41: 77.06
A42: 40 | B42: 第二面试室 | C42: 欧阳家国 | D42: 男 | E42: 20240310 | F42: 小学数学教师 | G42: 2 | H42: 126 | I42: 81.51 | J42: 82.76 | K42: 8 | L42: 进入下一环节
A43: 41 | B43: 第二面试室 | C43: 刘菲菲 | D43: 女 | E43: 20240311 | F43: 小学数学教师 | G43: 3 | H43: 132 | I43: 85.22 | J43: 86.61 | K43: 2 | L43: 进入下一环节
A44: 42 | B44: 第二面试室 | C44: 田红英 | D44: 女 | E44: 20240312 | F44: 小学数学教师 | G44: 10 | H44: 109 | I44: 79.32 | J44: 75.99
A45: 43 | B45: 第二面试室 | C45: 赵琴 | D45: 女 | E45: 20240313 | F45: 小学数学教师 | G45: 7 | H45: 132.5 | I45: 80.92 | J45: 84.63 | K45: 7 | L45: 进入下一环节
A46: 44 | B46: 第二面试室 | C46: 李超 | D46: 男 | E46: 20240314 | F46: 小学数学教师 | G46: 6 | H46: 133.5 | I46: 81.52 | J46: 85.26 | K46: 5 | L46: 进入下一环节
A47: 45 | B47: 第二面试室 | C47: 孙果 | D47: 男 | E47: 20240315 | F47: 小学数学教师 | G47: 14 | H47: 116 | I47: 80.14 | J47: 78.74
A48: 46 | B48: 第二面试室 | C48: 汪水琴 | D48: 女 | E48: 20240316 | F48: 小学数学教师 | G48: 缺考 | H48: 112 | I48: 缺考
A49: 47 | B49: 第二面试室 | C49: 吴惠园 | D49: 女 | E49: 20240317 | F49: 小学数学教师 | G49: 缺考 | H49: 99.5 | I49: 缺考
A50: 48 | B50: 第二面试室 | C50: 黄可维 | D50: 女 | E50: 20240318 | F50: 小学数学教师 | G50: 4 | H50: 130 | I50: 85.13 | J50: 85.90 | K50: 3 | L50: 进入下一环节
A51: 49 | B51: 第二面试室 | C51: 罗会斌 | D51: 男 | E51: 20240319 | F51: 小学数学教师 | G51: 15 | H51: 124 | I51: 81.01 | J51: 81.84
A52: 50 | B52: 第二面试室 | C52: 余桂红 | D52: 女 | E52: 20240320 | F52: 小学数学教师 | G52: 13 | H52: 126 | I52: 87.71 | J52: 85.86 | K52: 4 | L52: 进入下一环节
A53: 51 | B53: 第二面试室 | C53: 李东 | D53: 男 | E53: 20240321 | F53: 小学体育教师 | G53: 20 | H53: 102 | I53: 85.99 | J53: 77.00 | K53: 2 | L53: 进入下一环节
A54: 52 | B54: 第二面试室 | C54: 冯坤 | D54: 男 | E54: 20240322 | F54: 小学体育教师 | G54: 19 | H54: 90 | I54: 83.63 | J54: 71.82
A55: 53 | B55: 第二面试室 | C55: 田仁礼 | D55: 男 | E55: 20240323 | F55: 小学体育教师 | G55: 22 | H55: 91 | I55: 82.6 | J55: 71.63
A56: 54 | B56: 第二面试室 | C56: 安力 | D56: 男 | E56: 20240324 | F56: 小学体育教师 | G56: 18 | H56: 99 | I56: 84.88 | J56: 75.44 | K56: 3 | L56: 进入下一环节
A57: 55 | B57: 第二面试室 | C57: 颜学诗 | D57: 男 | E57: 20240325 | F57: 小学体育教师 | G57: 21 | H57: 115 | I57: 87.57 | J57: 82.12 | K57: 1 | L57: 进入下一环节
A58: 56 | B58: 第二面试室 | C58: 姚杰 | D58: 男 | E58: 20240326 | F58: 小学体育教师 | G58: 23 | H58: 91 | I58: 87.9 | J58: 74.28
A59: 57 | B59: 第二面试室 | C59: 袁森 | D59: 男 | E59: 20240410 | F59: 初中数学教师 | G59: 26 | H59: 113 | I59: 86.42 | J59: 80.88 | K59: 3 | L59: 进入下一环节
A60: 58 | B60: 第二面试室 | C60: 罗伯财 | D60: 男 | E60: 20240411 | F60: 初中数学教师 | G60: 25 | H60: 111 | I60: 82.53 | J60: 78.27
A61: 59 | B61: 第二面试室 | C61: 熊彪 | D61: 男 | E61: 20240412 | F61: 初中数学教师 | G61: 29 | H61: 139 | I61: 83.23 | J61: 87.95 | K61: 2 | L61: 进入下一环节
A62: 60 | B62: 第二面试室 | C62: 乐燕 | D62: 女 | E62: 20240413 | F62: 初中数学教师 | G62: 24 | H62: 137 | I62: 85.37 | J62: 88.35 | K62: 1 | L62: 进入下一环节
A63: 61 | B63: 第二面试室 | C63: 张红恽 | D63: 男 | E63: 20240414 | F63: 初中数学教师 | G63: 27 | H63: 107 | I63: 86.01 | J63: 78.67
A64: 62 | B64: 第二面试室 | C64: 邹国海 | D64: 男 | E64: 20240415 | F64: 初中数学教师 | G64: 28 | H64: 108 | I64: 84.74 | J64: 78.37
A65: 63 | B65: 第二面试室 | C65: 寇凌云 | D65: 女 | E65: 20240520 | F65: 小学心理健康教师 | G65: 30 | H65: 120 | I65: 81.34 | J65: 80.67
A66: 64 | B66: 第二面试室 | C66: 周迪 | D66: 女 | E66: 20240521 | F66: 小学心理健康教师 | G66: 31 | H66: 118 | I66: 87.92 | J66: 83.29 | K66: 1 | L66: 进入下一环节
A67: 65 | B67: 第二面试室 | C67: 鲁婷婷 | D67: 女 | E67: 20240522 | F67: 中学心理健康教师 | G67: 33 | H67: 113 | I67: 85.91 | J67: 80.62
A68: 66 | B68: 第二面试室 | C68: 杨万芳 | D68: 女 | E68: 20240523 | F68: 中学心理健康教师 | G68: 32 | H68: 121 | I68: 87.17 | J68: 83.92 | K68: 1 | L68: 进入下一环节
A69: 67 | B69: 第三面试室 | C69: 潘成玲 | D69: 女 | E69: 20240229 | F69: 小学道德与法治教师 | G69: 29 | H69: 125 | I69: 82.99 | J69: 83.16
A70: 68 | B70: 第三面试室 | C70: 李晓航 | D70: 女 | E70: 20240230 | F70: 小学道德与法治教师 | G70: 28 | H70: 134 | I70: 87.54 | J70: 88.44 | K70: 1 | L70: 进入下一环节
A71: 69 | B71: 第三面试室 | C71: 张维维 | D71: 女 | E71: 20240327 | F71: 初中道德与法治教师 | G71: 缺考 | H71: 111 | I71: 缺考
A72: 70 | B72: 第三面试室 | C72: 邓晓艳 | D72: 女 | E72: 20240328 | F72: 初中道德与法治教师 | G72: 1 | H72: 124 | I72: 83.01 | J72: =H72*2/3/2+I72*0.5 -> 82.84 | K72: 2 | L72: 进入下一环节
A73: 71 | B73: 第三面试室 | C73: 谢廷廷 | D73: 女 | E73: 20240329 | F73: 初中道德与法治教师 | G73: 2 | H73: 125 | I73: 86.25 | J73: 84.79 | K73: 1 | L73: 进入下一环节
A74: 72 | B74: 第三面试室 | C74: 李娜 | D74: 女 | E74: 20240330 | F74: 初中道德与法治教师 | G74: 缺考 | H74: 112 | I74: 缺考
A75: 73 | B75: 第三面试室 | C75: 张纳翠 | D75: 女 | E75: 20240401 | F75: 小学语文教师 | G75: 缺考 | H75: 97 | I75: 缺考
A76: 74 | B76: 第三面试室 | C76: 庞超 | D76: 男 | E76: 20240402 | F76: 小学语文教师 | G76: 16 | H76: 108 | I76: 89.76 | J76: 80.88 | K76: 3 | L76: 进入下一环节
A77: 75 | B77: 第三面试室 | C77: 王敏 | D77: 女 | E77: 20240403 | F77: 小学语文教师 | G77: 12 | H77: 111 | I77: 89.38 | J77: 81.69 | K77: 2 | L77: 进入下一环节
A78: 76 | B78: 第三面试室 | C78: 侯晓东 | D78: 男 | E78: 20240404 | F78: 小学语文教师 | G78: 11 | H78: 102 | I78: 85.13 | J78: 76.57
A79: 77 | B79: 第三面试室 | C79: 陈春燕 | D79: 女 | E79: 20240405 | F79: 小学语文教师 | G79: 15 | H79: 93 | I79: 86.42 | J79: 74.21
A80: 78 | B80: 第三面试室 | C80: 黎春艳 | D80: 女 | E80: 20240406 | F80: 小学语文教师 | G80: 13 | H80: 122 | I80: 88.69 | J80: 85.01 | K80: 1 | L80: 进入下一环节
A81: 79 | B81: 第三面试室 | C81: 田惠 | D81: 女 | E81: 20240407 | F81: 小学语文教师 | G81: 17 | H81: 106.5 | I81: 85.45 | J81: 78.23 | K81: 4 | L81: 进入下一环节
A82: 80 | B82: 第三面试室 | C82: 安华波 | D82: 男 | E82: 20240409 | F82: 小学语文教师 | G82: 14 | H82: 97.5 | I82: 85.02 | J82: 75.01
A83: 81 | B83: 第三面试室 | C83: 韩红梅 | D83: 女 | E83: 20240417 | F83: 初中英语教师 | G83: 34 | H83: 133 | I83: 89.36 | J83: 89.01 | K83: 1 | L83: 进入下一环节
A84: 82 | B84: 第三面试室 | C84: 何丽 | D84: 女 | E84: 20240420 | F84: 初中英语教师 | G84: 33 | H84: 130.5 | I84: 86.45 | J84: 86.73
A85: 83 | B85: 第三面试室 | C85: 王雯 | D85: 女 | E85: 20240421 | F85: 初中英语教师 | G85: 31 | H85: 127 | I85: 89.77 | J85: 87.22 | K85: 3 | L85: 进入下一环节
A86: 84 | B86: 第三面试室 | C86: 阳丽 | D86: 女 | E86: 20240425 | F86: 初中英语教师 | G86: 32 | H86: 124 | I86: 85.68 | J86: 84.17
A87: 85 | B87: 第三面试室 | C87: 张羽凤 | D87: 女 | E87: 20240429 | F87: 初中英语教师 | G87: 30 | H87: 130 | I87: 84.89 | J87: 85.78
A88: 86 | B88: 第三面试室 | C88: 吕吉清 | D88: 男 | E88: 20240430 | F88: 初中英语教师 | G88: 35 | H88: 131 | I88: 88.29 | J88: 87.81 | K88: 2 | L88: 进入下一环节
A89: 87 | B89: 第三面试室 | C89: 刘念念 | D89: 女 | E89: 20240501 | F89: 初中历史教师 | G89: 6 | H89: 134.5 | I89: 87.81 | J89: 88.74 | K89: 1 | L89: 进入下一环节
A90: 88 | B90: 第三面试室 | C90: 曾程 | D90: 女 | E90: 20240502 | F90: 初中历史教师 | G90: 8 | H90: 131 | I90: 86.41 | J90: 86.87 | K90: 2 | L90: 进入下一环节
A91: 89 | B91: 第三面试室 | C91: 蒲秀兰 | D91: 女 | E91: 20240503 | F91: 初中历史教师 | G91: 缺考 | H91: 126.5 | I91: 缺考
A92: 90 | B92: 第三面试室 | C92: 黄潇宵 | D92: 女 | E92: 20240504 | F92: 初中历史教师 | G92: 5 | H92: 127 | I92: 84.35 | J92: 84.51
A93: 91 | B93: 第三面试室 | C93: 田凯南 | D93: 女 | E93: 20240505 | F93: 初中历史教师 | G93: 9 | H93: 128.5 | I93: 85.42 | J93: 85.54 | K93: 3 | L93: 进入下一环节
A94: 92 | B94: 第三面试室 | C94: 冯敏敏 | D94: 女 | E94: 20240507 | F94: 初中历史教师 | G94: 7 | H94: 124 | I94: 87.08 | J94: 84.87
A95: 93 | B95: 第三面试室 | C95: 安霞 | D95: 女 | E95: 20240508 | F95: 初中语文教师 | G95: 22 | H95: 121.5 | I95: 87.48 | J95: 84.24 | K95: 3 | L95: 进入下一环节
A96: 94 | B96: 第三面试室 | C96: 黄婷 | D96: 女 | E96: 20240509 | F96: 初中语文教师 | G96: 20 | H96: 129 | I96: 87.37 | J96: 86.69 | K96: 1 | L96: 进入下一环节
A97: 95 | B97: 第三面试室 | C97: 张丹丹 | D97: 女 | E97: 20240510 | F97: 初中语文教师 | G97: 缺考 | H97: 107 | I97: 缺考
A98: 96 | B98: 第三面试室 | C98: 张玉琴 | D98: 女 | E98: 20240511 | F98: 初中语文教师 | G98: 缺考 | H98: 114.5 | I98: 缺考
A99: 97 | B99: 第三面试室 | C99: 杨坤 | D99: 女 | E99: 20240512 | F99: 初中语文教师 | G99: 24 | H99: 119.5 | I99: 88.69 | J99: 84.18 | K99: 4 | L99: 进入下一环节
A100: 98 | B100: 第三面试室 | C100: 符平琴 | D100: 女 | E100: 20240513 | F100: 初中语文教师 | G100: 23 | H100: 120.5 | I100: 88.82 | J100: 84.58 | K100: 2 | L100: 进入下一环节
A101: 99 | B101: 第三面试室 | C101: 易明慧 | D101: 女 | E101: 20240514 | F101: 初中语文教师 | G101: 21 | H101: 117 | I101: 85.06 | J101: 81.53
A102: 100 | B102: 第三面试室 | C102: 冉艳 | D102: 女 | E102: 20240515 | F102: 初中语文教师 | G102: 缺考 | H102: 102.5 | I102: 缺考
A103: 101 | B103: 第三面试室 | C103: 张玉琴 | D103: 女 | E103: 20240517 | F103: 初中语文教师 | G103: 19 | H103: 123 | I103: 84.85 | J103: =H103*2/3/2+I103*0.5 -> 83.43 | K103: 5 | L103: 进入下一环节
A104: 102 | B104: 第四面试室 | C104: 陈仕兰 | D104: 女 | E104: 20240602 | F104: 护理 | G104: 9 | H104: 66 | I104: 81.80 | J104: =H104*0.5+I104*0.5 -> 73.90
A105: 103 | B105: 第四面试室 | C105: 黄爱蓉 | D105: 女 | E105: 20240609 | F105: 护理 | G105: 6 | H105: 62 | I105: 93.40 | J105: =H105*0.5+I105*0.5 -> 77.70 | K105: 2 | L105: 进入下一环节
A106: 104 | B106: 第四面试室 | C106: 张珊珊 | D106: 女 | E106: 20240617 | F106: 护理 | G106: 8 | H106: 68.5 | I106: 86.00 | J106: =H106*0.5+I106*0.5 -> 77.25
A107: 105 | B107: 第四面试室 | C107: 冉秀丽 | D107: 女 | E107: 20240619 | F107: 护理 | G107: 5 | H107: 63 | I107: 82.20 | J107: 72.60
A108: 106 | B108: 第四面试室 | C108: 冉芳 | D108: 女 | E108: 20240620 | F108: 护理 | G108: 7 | H108: 77.5 | I108: 88.20 | J108: 82.85 | K108: 1 | L108: 进入下一环节
A109: 107 | B109: 第四面试室 | C109: 敖应丽 | D109: 女 | E109: 20240621 | F109: 护理 | G109: 4 | H109: 68.5 | I109: 86.20 | J109: 77.35 | K109: 3 | L109: 进入下一环节
A110: 108 | B110: 第四面试室 | C110: 李云 | D110: 女 | E110: 20240628 | F110: 护理 | G110: 缺考 | H110: 62 | I110: 缺考
A111: 109 | B111: 第四面试室 | C111: 杨敏 | D111: 女 | E111: 20240701 | F111: 临床医师 | G111: 14 | H111: 54 | I111: 79.40 | J111: =H111*0.5+I111*0.5 -> 66.70
A112: 110 | B112: 第四面试室 | C112: 杜福艳 | D112: 女 | E112: 20240705 | F112: 临床医师 | G112: 12 | H112: 56 | I112: 72.80 | J112: 64.40
A113: 111 | B113: 第四面试室 | C113: 杨光艳 | D113: 女 | E113: 20240707 | F113: 临床医师 | G113: 13 | H113: 55 | I113: 86.8 | J113: 70.90 | K113: 3 | L113: 进入下一环节
A114: 112 | B114: 第四面试室 | C114: 徐金碧 | D114: 女 | E114: 20240713 | F114: 临床医师 | G114: 15 | H114: 64 | I114: 85.60 | J114: 74.80 | K114: 1 | L114: 进入下一环节
A115: 113 | B115: 第四面试室 | C115: 刘顺妮 | D115: 女 | E115: 20240715 | F115: 临床医师 | G115: 11 | H115: 56 | I115: 77.80 | J115: 66.90
A116: 114 | B116: 第四面试室 | C116: 李中艳 | D116: 女 | E116: 20240716 | F116: 临床医师 | G116: 10 | H116: 58 | I116: 84.80 | J116: 71.40 | K116: 2 | L116: 进入下一环节
A117: 115 | B117: 第四面试室 | C117: 张玉强 | D117: 男 | E117: 20240722 | F117: 影像 | G117: 3 | H117: 55.4 | I117: 68.00 | J117: 61.70 | K117: 1 | L117: 进入下一环节
A118: 116 | B118: 第四面试室 | C118: 姚云霞 | D118: 女 | E118: 20240724 | F118: 影像 | G118: 2 | H118: 53.1 | I118: 59.40 | J118: 56.25
A119: 117 | B119: 第四面试室 | C119: 罗松 | D119: 男 | E119: 20240801 | F119: 检验 | G119: 16 | H119: 61 | I119: 61.60 | J119: 61.30 | K119: 1 | L119: 进入下一环节
A120: 118 | B120: 第四面试室 | C120: 李科华 | D120: 男 | E120: 20240805 | F120: 检验 | G120: 17 | H120: 53 | I120: 66.60 | J120: 59.80
A121: 119 | B121: 第四面试室 | C121: 安红莲 | D121: 女 | E121: 20240808 | F121: 药学 | G121: 缺考 | H121: 71 | I121: 缺考
A122: 120 | B122: 第四面试室 | C122: 许雪华 | D122: 男 | E122: 20240810 | F122: 药学 | G122: 1 | H122: 71 | I122: 70.40 | J122: 70.70 | K122: 1 | L122: 进入下一环节
A123: 121 | B123: 第五面试室 | C123: 袁美婷 | D123: 女 | E123: 20240901 | F123: A02 | G123: 15 | H123: 69.25 | I123: 80.35 | J123: =H123*0.6+I123*0.4 -> 73.69 | L123: 该考场面试成绩平均分为81.13
A124: 122 | B124: 第五面试室 | C124: 王治明 | D124: 男 | E124: 20240903 | F124: A06 | G124: 6 | H124: 68.75 | I124: 80.21 | J124: =H124*0.6+I124*0.4 -> 73.33 | L124: 该考场面试成绩平均分为81.13
A125: 123 | B125: 第五面试室 | C125: 丁洪飞 | D125: 男 | E125: 20240905 | F125: A07 | G125: 11 | H125: 68.25 | I125: 81.94 | J125: 73.73 | L125: 该考场面试成绩平均分为81.13，进入下一环节
A126: 124 | B126: 第五面试室 | C126: 张亚萍 | D126: 女 | E126: 20240906 | F126: A08 | G126: 缺考 | H126: 63 | I126: 缺考
A127: 125 | B127: 第五面试室 | C127: 毛锐 | D127: 男 | E127: 20240907 | F127: A13 | G127: 9 | H127: 70.25 | I127: 80.80 | J127: =H127*0.6+I127*0.4 -> 74.47 | K127: 2 | L127: 进入下一环节
A128: 126 | B128: 第五面试室 | C128: 李会林 | D128: 男 | E128: 20240908 | F128: A13 | G128: 1 | H128: 64.5 | I128: 85.74 | J128: 73.00
A129: 127 | B129: 第五面试室 | C129: 张城 | D129: 男 | E129: 20240909 | F129: A13 | G129: 14 | H129: 74 | I129: 78.29 | J129: 75.72 | K129: 1 | L129: 进入下一环节
A130: 128 | B130: 第五面试室 | C130: 袁松 | D130: 男 | E130: 20240910 | F130: A13 | G130: 16 | H130: 67.5 | I130: 81.72 | J130: 73.19
A131: 129 | B131: 第五面试室 | C131: 朱际伟 | D131: 男 | E131: 20240911 | F131: A14 | G131: 19 | H131: 65.75 | I131: 79.67 | J131: 71.32 | K131: 2 | L131: 进入下一环节
A132: 130 | B132: 第五面试室 | C132: 阮天星 | D132: 男 | E132: 20240913 | F132: A14 | G132: 2 | H132: 64.75 | I132: 79.39 | J132: 70.61
A133: 131 | B133: 第五面试室 | C133: 张婷婷 | D133: 女 | E133: 20240914 | F133: A14 | G133: 13 | H133: 66.25 | I133: 76.78 | J133: 70.46
A134: 132 | B134: 第五面试室 | C134: 付娅岚 | D134: 女 | E134: 20240915 | F134: A14 | G134: 5 | H134: 61.75 | I134: 81.86 | J134: 69.79
A135: 133 | B135: 第五面试室 | C135: 代亚玲 | D135: 女 | E135: 20240916 | F135: A14 | G135: 3 | H135: 67 | I135: 82.83 | J135: 73.33 | K135: 1 | L135: 进入下一环节
A136: 134 | B136: 第五面试室 | C136: 喻露 | D136: 女 | E136: 20240917 | F136: A15 | G136: 10 | H136: 63.5 | I136: 77.16 | J136: 68.96
A137: 135 | B137: 第五面试室 | C137: 郭昌 | D137: 男 | E137: 20240918 | F137: A15 | G137: 17 | H137: 68.75 | I137: 78.79 | J137: 72.77
A138: 136 | B138: 第五面试室 | C138: 叶兴龙 | D138: 男 | E138: 20240920 | F138: A15 | G138: 7 | H138: 73.75 | I138: 78.94 | J138: 75.83 | K138: 1 | L138: 进入下一环节
A139: 137 | B139: 第五面试室 | C139: 李仕敏 | D139: 女 | E139: 20240923 | F139: A16 | G139: 4 | H139: 72.25 | I139: 85.28 | J139: 77.46 | L139: 该考场面试成绩平均分为81.13，进入下一环节
A140: 138 | B140: 第五面试室 | C140: 赵文来 | D140: 男 | E140: 20240924 | F140: A16 | G140: 缺考 | H140: 64.75 | I140: 缺考
A141: 139 | B141: 第五面试室 | C141: 夏章正 | D141: 男 | E141: 20240925 | F141: A17 | G141: 18 | H141: 68.5 | I141: 79.05 | J141: 72.72 | L141: 该考场面试成绩平均分为81.13
A142: 140 | B142: 第五面试室 | C142: 石龙 | D142: 男 | E142: 20240926 | F142: A17 | G142: 8 | H142: 68.75 | I142: 85.48 | J142: 75.44 | L142: 该考场面试成绩平均分为81.13，进入下一环节
A143: 141 | B143: 第五面试室 | C143: 郑小依 | D143: 女 | E143: 20241024 | F143: A03 | G143: 12 | H143: 61.75 | I143: 87.75 | J143: 72.15 | L143: 该考场面试成绩平均分为81.13，进入下一环节
A144: 142 | B144: 第六面试室 | C144: 张慧 | D144: 女 | E144: 20240927 | F144: A18 | G144: 15 | H144: 70.75 | I144: 81.96 | J144: 75.23 | K144: 1 | L144: 进入下一环节
A145: 143 | B145: 第六面试室 | C145: 黄双双 | D145: 女 | E145: 20240929 | F145: A18 | G145: 11 | H145: 61.25 | I145: 86.53 | J145: 71.36
A146: 144 | B146: 第六面试室 | C146: 朱正军 | D146: 男 | E146: 20240930 | F146: A18 | G146: 17 | H146: 60 | I146: 79.03 | J146: 67.61
A147: 145 | B147: 第六面试室 | C147: 韩旭 | D147: 男 | E147: 20241001 | F147: A19 | G147: 6 | H147: 60 | I147: 86.46 | J147: 70.58 | L147: 该考场面试成绩平均分为82.51，进入下一环节
A148: 146 | B148: 第六面试室 | C148: 李雪冬 | D148: 男 | E148: 20241002 | F148: A20 | G148: 19 | H148: 68.25 | I148: 84.83 | J148: 74.88 | K148: 1 | L148: 该考场面试成绩平均分为82.51，进入下一环节
A149: 147 | B149: 第六面试室 | C149: 杨胜华 | D149: 男 | E149: 20241003 | F149: A20 | G149: 13 | H149: 68.25 | I149: 82.21 | J149: 73.83 | L149: 该考场面试成绩平均分为82.51
A150: 148 | B150: 第六面试室 | C150: 李登程 | D150: 女 | E150: 20241004 | F150: A21 | G150: 4 | H150: 60 | I150: 84.78 | J150: 69.91 | L150: 该考场面试成绩平均分为82.51，进入下一环节
A151: 149 | B151: 第六面试室 | C151: 安明杭 | D151: 男 | E151: 20241006 | F151: A22 | G151: 8 | H151: 66.5 | I151: 85.17 | J151: 73.97 | L151: 该考场面试成绩平均分为82.51，进入下一环节
A152: 150 | B152: 第六面试室 | C152: 马晓峰 | D152: 男 | E152: 20241007 | F152: A23 | G152: 10 | H152: 63.75 | I152: 81.96 | J152: 71.03
A153: 151 | B153: 第六面试室 | C153: 孙峰 | D153: 男 | E153: 20241008 | F153: A23 | G153: 9 | H153: 68.25 | I153: 79.76 | J153: 72.85 | K153: 3 | L153: 进入下一环节
A154: 152 | B154: 第六面试室 | C154: 田冲 | D154: 男 | E154: 20241010 | F154: A23 | G154: 1 | H154: 66.25 | I154: 82.65 | J154: 72.81
A155: 153 | B155: 第六面试室 | C155: 李旭 | D155: 男 | E155: 20241011 | F155: A23 | G155: 16 | H155: 64.5 | I155: 86.79 | J155: 73.42 | K155: 2 | L155: 进入下一环节
A156: 154 | B156: 第六面试室 | C156: 袁权 | D156: 男 | E156: 20241012 | F156: A23 | G156: 14 | H156: 77.5 | I156: 87.00 | J156: 81.30 | K156: 1 | L156: 进入下一环节
A157: 155 | B157: 第六面试室 | C157: 张娅 | D157: 女 | E157: 20241013 | F157: A24 | G157: 18 | H157: 66.5 | I157: 89.36 | J157: 75.64 | K157: 2 | L157: 进入下一环节
A158: 156 | B158: 第六面试室 | C158: 安路 | D158: 女 | E158: 20241014 | F158: A24 | G158: 20 | H158: 70.75 | I158: 83.48 | J158: 75.84 | K158: 1 | L158: 进入下一环节
A159: 157 | B159: 第六面试室 | C159: 严鑫鑫 | D159: 女 | E159: 20241015 | F159: A24 | G159: 5 | H159: 62 | I159: 81.29 | J159: 69.72
A160: 158 | B160: 第六面试室 | C160: 罗小勤 | D160: 女 | E160: 20241019 | F160: A25 | G160: 7 | H160: 60 | I160: 85.64 | J160: 70.26 | L160: 该考场面试成绩平均分为82.51，进入下一环节
A161: 159 | B161: 第六面试室 | C161: 周先伟 | D161: 男 | E161: 20241020 | F161: A26 | G161: 12 | H161: 65.75 | I161: 81.31 | J161: 71.97
A162: 160 | B162: 第六面试室 | C162: 文珍珠 | D162: 女 | E162: 20241021 | F162: A26 | G162: 2 | H162: 69.75 | I162: 83.55 | J162: 75.27 | K162: 1 | L162: 进入下一环节
A163: 161 | B163: 第六面试室 | C163: 周丹丹 | D163: 女 | E163: 20241022 | F163: A27 | G163: 21 | H163: 71.25 | I163: 79.77 | J163: 74.66 | K163: 1 | L163: 进入下一环节
A164: 162 | B164: 第六面试室 | C164: 唐高勇 | D164: 男 | E164: 20241023 | F164: A27 | G164: 3 | H164: 67.5 | I164: 79.03 | J164: 72.11
